[Event "*** Titled Tuesday Blitz"]
[Site "Chess.com"]
[Date "2021.02.02"]
[Round "6"]
[White "chessasuke"]
[Black "Srisshhhtea"]
[Result "0-1"]
[WhiteElo "2567"]
[BlackElo "2456"]
[TimeControl "180+1"]
[EndTime "11:08:10 PST"]
[Termination "Srisshhhtea won by resignation"]

1. e4 {[%clk 0:03:00.9]} 1... c5 {[%clk 0:02:57.2]} 2. Nf3 {[%clk 0:02:59.3]}
2... d6 {[%clk 0:02:57.2]} 3. Nc3 {[%clk 0:02:58.8]} 3... Nf6 {[%clk 0:02:54.9]}
4. d4 {[%clk 0:02:56.5]} 4... cxd4 {[%clk 0:02:55.8]} 5. Nxd4 {[%clk 0:02:57.3]}
5... Nc6 {[%clk 0:02:52.3]} 6. Bg5 {[%clk 0:02:55.7]} 6... e6 {[%clk 0:02:50.4]}
7. Qd2 {[%clk 0:02:54.5]} 7... a6 {[%clk 0:02:48.1]} 8. O-O-O {[%clk 0:02:54.3]}
8... Bd7 {[%clk 0:02:46.4]} 9. Kb1 {[%clk 0:02:52.7]} 9... b5 {[%clk 0:02:43.2]}
10. f3 {[%clk 0:02:49.7]} 10... Nxd4 {[%clk 0:02:38.1]} 11. Qxd4 {[%clk
0:02:50.6]} 11... Be7 {[%clk 0:02:38.2]} 12. h4 {[%clk 0:02:50.2]} 12... Qc7
{[%clk 0:02:34.6]} 13. Bd3 {[%clk 0:02:46.5]} 13... e5 {[%clk 0:02:27]} 14. Qf2
{[%clk 0:02:44.8]} 14... Be6 {[%clk 0:02:26.7]} 15. Bxf6 {[%clk 0:02:42]} 15...
Bxf6 {[%clk 0:02:17.9]} 16. Bf1 {[%clk 0:02:40.3]} 16... O-O {[%clk 0:02:14.1]}
17. Nd5 {[%clk 0:02:40.4]} 17... Bxd5 {[%clk 0:02:11.6]} 18. Rxd5 {[%clk
0:02:41.3]} 18... Rfc8 {[%clk 0:02:10]} 19. Bd3 {[%clk 0:02:41.2]} 19... b4
{[%clk 0:02:05.1]} 20. g4 {[%clk 0:02:40.2]} 20... a5 {[%clk 0:02:04.5]} 21. g5
{[%clk 0:02:37.2]} 21... Bd8 {[%clk 0:02:04.3]} 22. Qg2 {[%clk 0:02:24.6]} 22...
a4 {[%clk 0:02:03.1]} 23. h5 {[%clk 0:02:19.9]} 23... a3 {[%clk 0:02:02.4]} 24.
g6 {[%clk 0:02:17]} 24... axb2 {[%clk 0:01:47.9]} 25. gxf7+ {[%clk 0:01:21.3]}
25... Kf8 {[%clk 0:01:42]} 26. h6 {[%clk 0:00:53.4]} 26... g6 {[%clk 0:01:40.9]}
27. Qe2 {[%clk 0:00:50.3]} 27... b3 {[%clk 0:01:21.5]} 28. c4 {[%clk 0:00:22.7]}
28... bxa2+ {[%clk 0:01:09.3]} 29. Kxb2 {[%clk 0:00:22.5]} 29... Rcb8+ {[%clk
0:00:47.8]} 30. Rb5 {[%clk 0:00:21.6]} 30... Rxb5+ {[%clk 0:00:43.1]} 31. cxb5
{[%clk 0:00:22.5]} 31... Qa5 {[%clk 0:00:34.2]} 32. Ka1 {[%clk 0:00:20.5]} 32...
Bb6 {[%clk 0:00:32.1]} 0-1

[Event "*** Titled Tuesday Blitz"]
[Site "Chess.com"]
[Date "2021.02.02"]
[Round "6"]
[White "GadimbayliA"]
[Black "NMJeevanK"]
[Result "1-0"]
[WhiteElo "2877"]
[BlackElo "2515"]
[TimeControl "180+1"]
[EndTime "11:08:22 PST"]
[Termination "GadimbayliA won by resignation"]

1. e4 {[%clk 0:03:00.9]} 1... e5 {[%clk 0:02:59.9]} 2. Nf3 {[%clk 0:02:59.5]}
2... Nc6 {[%clk 0:03:00.2]} 3. Nc3 {[%clk 0:02:59.7]} 3... Nf6 {[%clk
0:02:59.9]} 4. d4 {[%clk 0:03:00.1]} 4... exd4 {[%clk 0:03:00.8]} 5. Nxd4 {[%clk
0:03:01]} 5... Nxd4 {[%clk 0:03:01.4]} 6. Qxd4 {[%clk 0:03:00.6]} 6... d6 {[%clk
0:03:01.9]} 7. Bc4 {[%clk 0:02:59.6]} 7... Be7 {[%clk 0:03:02.5]} 8. Bf4 {[%clk
0:02:59.9]} 8... O-O {[%clk 0:03:02.5]} 9. O-O {[%clk 0:03:00.5]} 9... Be6
{[%clk 0:03:02.9]} 10. Bxe6 {[%clk 0:02:55.1]} 10... fxe6 {[%clk 0:03:03.8]} 11.
Qc4 {[%clk 0:02:53.1]} 11... Qd7 {[%clk 0:02:44.2]} 12. Rad1 {[%clk 0:02:52.2]}
12... Kh8 {[%clk 0:02:37.5]} 13. e5 {[%clk 0:02:48.7]} 13... Nh5 {[%clk
0:02:26.6]} 14. exd6 {[%clk 0:02:42.2]} 14... cxd6 {[%clk 0:01:52.2]} 15. Be3
{[%clk 0:02:30.2]} 15... d5 {[%clk 0:01:46.8]} 16. Qg4 {[%clk 0:02:20.9]} 16...
Rf5 {[%clk 0:01:41.4]} 17. Ne2 {[%clk 0:02:10.9]} 17... Raf8 {[%clk 0:01:34.3]}
18. Nd4 {[%clk 0:02:08.8]} 18... Nf6 {[%clk 0:01:30]} 19. Qh3 {[%clk 0:02:07]}
19... Rh5 {[%clk 0:01:28.9]} 20. Qxe6 {[%clk 0:02:06.2]} 20... Qc7 {[%clk
0:01:19.9]} 21. h3 {[%clk 0:01:33.2]} 21... a6 {[%clk 0:00:35.6]} 22. Nf3 {[%clk
0:01:19.7]} 22... Bd6 {[%clk 0:00:28.1]} 23. h4 {[%clk 0:00:57.6]} 23... Re8
{[%clk 0:00:21.5]} 24. Qh3 {[%clk 0:00:57.1]} 24... Qxc2 {[%clk 0:00:21.3]} 25.
Ng5 {[%clk 0:00:50.6]} 25... Qg6 {[%clk 0:00:16.3]} 26. g4 {[%clk 0:00:38.5]}
26... Nxg4 {[%clk 0:00:10.2]} 27. Qxg4 {[%clk 0:00:39.4]} 27... h6 {[%clk
0:00:10.2]} 28. Rxd5 {[%clk 0:00:39.6]} 28... hxg5 {[%clk 0:00:09.6]} 29. Rxd6
{[%clk 0:00:39.4]} 29... Qh7 {[%clk 0:00:04.7]} 30. Bxg5 {[%clk 0:00:37.6]}
30... Rf8 {[%clk 0:00:04.9]} 31. Rfd1 {[%clk 0:00:35.2]} 31... g6 {[%clk
0:00:02.8]} 32. Rd8 {[%clk 0:00:33.3]} 32... Qg8 {[%clk 0:00:02.9]} 33. Rxf8
{[%clk 0:00:31.9]} 33... Qxf8 {[%clk 0:00:03.8]} 34. Rd8 {[%clk 0:00:32.3]} 1-0

[Event "*** Titled Tuesday Blitz"]
[Site "Chess.com"]
[Date "2021.02.02"]
[Round "6"]
[White "doons21"]
[Black "Sergienko_Sergey"]
[Result "1-0"]
[WhiteElo "2552"]
[BlackElo "2387"]
[TimeControl "180+1"]
[EndTime "11:08:27 PST"]
[Termination "doons21 won by resignation"]

1. e4 {[%clk 0:02:59.2]} 1... c5 {[%clk 0:02:59.3]} 2. c3 {[%clk 0:02:58.4]}
2... d5 {[%clk 0:02:58.3]} 3. exd5 {[%clk 0:02:59]} 3... Qxd5 {[%clk 0:02:58.3]}
4. d4 {[%clk 0:02:59.9]} 4... Nf6 {[%clk 0:02:57.8]} 5. Nf3 {[%clk 0:03:00.5]}
5... Bg4 {[%clk 0:02:57.4]} 6. Be2 {[%clk 0:03:00.2]} 6... e6 {[%clk 0:02:56.8]}
7. Na3 {[%clk 0:02:58.3]} 7... cxd4 {[%clk 0:02:54.7]} 8. Nb5 {[%clk 0:02:58.5]}
8... Qd8 {[%clk 0:02:51.5]} 9. Nbxd4 {[%clk 0:02:51.5]} 9... Be7 {[%clk
0:02:45.7]} 10. Qa4+ {[%clk 0:02:45.6]} 10... Nbd7 {[%clk 0:02:42.2]} 11. O-O
{[%clk 0:02:39.6]} 11... O-O {[%clk 0:02:39.6]} 12. h3 {[%clk 0:02:37.8]} 12...
Bh5 {[%clk 0:02:39.5]} 13. Rd1 {[%clk 0:02:37.7]} 13... a6 {[%clk 0:02:15.7]}
14. Bf4 {[%clk 0:02:25.1]} 14... Qb6 {[%clk 0:02:08.6]} 15. Qb3 {[%clk
0:02:17.5]} 15... Qxb3 {[%clk 0:02:02.3]} 16. Nxb3 {[%clk 0:02:08]} 16... Nd5
{[%clk 0:01:55.6]} 17. Bg3 {[%clk 0:02:04.1]} 17... Nc5 {[%clk 0:01:45.6]} 18.
Nxc5 {[%clk 0:01:52.3]} 18... Bxc5 {[%clk 0:01:45.3]} 19. Kf1 {[%clk 0:01:53]}
19... Rfd8 {[%clk 0:01:37.2]} 20. Ne5 {[%clk 0:01:53.1]} 20... Bxe2+ {[%clk
0:01:34.4]} 21. Kxe2 {[%clk 0:01:54]} 21... f6 {[%clk 0:01:29.4]} 22. Nd3 {[%clk
0:01:52.7]} 22... Be7 {[%clk 0:01:10.8]} 23. c4 {[%clk 0:01:53]} 23... Nb4
{[%clk 0:01:10.2]} 24. Nxb4 {[%clk 0:01:52.6]} 24... Bxb4 {[%clk 0:01:09.6]} 25.
a3 {[%clk 0:01:52.5]} 25... Be7 {[%clk 0:01:08.1]} 26. b4 {[%clk 0:01:49.3]}
26... Kf7 {[%clk 0:01:06.9]} 27. c5 {[%clk 0:01:37.7]} 27... e5 {[%clk 0:01:05]}
28. f4 {[%clk 0:01:34.6]} 28... exf4 {[%clk 0:00:52.3]} 29. Bxf4 {[%clk
0:01:35.5]} 29... g5 {[%clk 0:00:52.2]} 30. Bc7 {[%clk 0:01:35.1]} 30... Rxd1
{[%clk 0:00:45.9]} 31. Rxd1 {[%clk 0:01:36]} 31... Ke6 {[%clk 0:00:45]} 32. Kd3
{[%clk 0:01:31.8]} 32... Rc8 {[%clk 0:00:39.7]} 33. Re1+ {[%clk 0:01:23]} 33...
Kd7 {[%clk 0:00:37.3]} 34. Bg3 {[%clk 0:01:23.3]} 34... Rc6 {[%clk 0:00:29.3]}
35. Kc4 {[%clk 0:01:10.5]} 35... Re6 {[%clk 0:00:27]} 36. Rd1+ {[%clk
0:01:10.8]} 36... Kc6 {[%clk 0:00:25.1]} 37. a4 {[%clk 0:00:58.2]} 37... Re4+
{[%clk 0:00:24.7]} 38. Rd4 {[%clk 0:00:58]} 38... b5+ {[%clk 0:00:17.8]} 39.
axb5+ {[%clk 0:00:56.9]} 39... axb5+ {[%clk 0:00:16.7]} 40. Kd3 {[%clk
0:00:57.5]} 40... Rxd4+ {[%clk 0:00:14.8]} 41. Kxd4 {[%clk 0:00:58.4]} 41... Bd8
{[%clk 0:00:13.6]} 42. Ke4 {[%clk 0:00:58.3]} 42... h5 {[%clk 0:00:12.2]} 43.
Bd6 {[%clk 0:00:56.9]} 43... g4 {[%clk 0:00:11]} 44. hxg4 {[%clk 0:00:56.6]}
44... hxg4 {[%clk 0:00:11]} 45. Kf5 {[%clk 0:00:56.5]} 45... Kd5 {[%clk
0:00:09.9]} 46. Kxg4 {[%clk 0:00:57]} 46... Kc4 {[%clk 0:00:06.2]} 47. c6 {[%clk
0:00:56.4]} 1-0

[Event "*** Titled Tuesday Blitz"]
[Site "Chess.com"]
[Date "2021.02.02"]
[Round "6"]
[White "anon481216"]
[Black "ViktoriyaTarasova"]
[Result "1-0"]
[WhiteElo "2451"]
[BlackElo "2292"]
[TimeControl "180+1"]
[EndTime "11:08:28 PST"]
[Termination "anon481216 won by resignation"]

1. d4 {[%clk 0:03:00.9]} 1... Nf6 {[%clk 0:02:44]} 2. c4 {[%clk 0:02:59.4]} 2...
e6 {[%clk 0:02:43.7]} 3. Nf3 {[%clk 0:02:59.7]} 3... b6 {[%clk 0:02:43.3]} 4. g3
{[%clk 0:02:59.9]} 4... Ba6 {[%clk 0:02:42.9]} 5. Qc2 {[%clk 0:02:59.5]} 5... d5
{[%clk 0:02:42.7]} 6. cxd5 {[%clk 0:02:56]} 6... exd5 {[%clk 0:02:42.9]} 7. Bg2
{[%clk 0:02:56.2]} 7... Bd6 {[%clk 0:02:40.7]} 8. O-O {[%clk 0:02:52.5]} 8...
O-O {[%clk 0:02:40.8]} 9. Ne5 {[%clk 0:02:49.3]} 9... Bb7 {[%clk 0:02:40]} 10.
Nc3 {[%clk 0:02:48.6]} 10... Nbd7 {[%clk 0:02:39]} 11. f4 {[%clk 0:02:46.4]}
11... c5 {[%clk 0:02:29.1]} 12. e3 {[%clk 0:02:46.1]} 12... Rc8 {[%clk
0:02:26.4]} 13. Bh3 {[%clk 0:02:34.7]} 13... cxd4 {[%clk 0:02:14.7]} 14. exd4
{[%clk 0:02:34.5]} 14... Rc7 {[%clk 0:02:15.2]} 15. Qg2 {[%clk 0:02:29.2]} 15...
Nb8 {[%clk 0:02:07.8]} 16. f5 {[%clk 0:02:19.1]} 16... a6 {[%clk 0:01:50.2]} 17.
g4 {[%clk 0:02:04.1]} 17... Ne4 {[%clk 0:01:40.4]} 18. Nxe4 {[%clk 0:01:56.4]}
18... dxe4 {[%clk 0:01:40]} 19. g5 {[%clk 0:01:52.2]} 19... e3 {[%clk
0:01:08.8]} 20. Qe2 {[%clk 0:01:36.5]} 20... Qxg5+ {[%clk 0:01:07.3]} 21. Ng4
{[%clk 0:01:31]} 21... Qh4 {[%clk 0:00:58.2]} 22. Qxe3 {[%clk 0:01:25]} 22...
Re7 {[%clk 0:00:52.9]} 23. Qb3 {[%clk 0:01:12.8]} 23... Re2 {[%clk 0:00:39.9]}
24. Bf4 {[%clk 0:00:39.4]} 24... Bxf4 {[%clk 0:00:32.8]} 25. Rxf4 {[%clk
0:00:39.2]} 25... Qg5 {[%clk 0:00:33.3]} 26. Qg3 {[%clk 0:00:37.5]} 26... Nc6
{[%clk 0:00:30.7]} 27. Rd1 {[%clk 0:00:29.4]} 27... Rfe8 {[%clk 0:00:27.5]} 28.
d5 {[%clk 0:00:25.7]} 28... Ne7 {[%clk 0:00:26]} 29. Bg2 {[%clk 0:00:20.4]}
29... Nxf5 {[%clk 0:00:25.1]} 30. Rxf5 {[%clk 0:00:19.4]} 30... Qxf5 {[%clk
0:00:25]} 31. Nh6+ {[%clk 0:00:19.5]} 31... Kh8 {[%clk 0:00:24.8]} 32. Nxf5
{[%clk 0:00:20.1]} 32... g6 {[%clk 0:00:22.9]} 33. Qc3+ {[%clk 0:00:19.7]} 33...
R2e5 {[%clk 0:00:21.7]} 34. Re1 {[%clk 0:00:19]} 34... f6 {[%clk 0:00:21.1]} 35.
Rxe5 {[%clk 0:00:18.4]} 35... Rxe5 {[%clk 0:00:21.3]} 36. Nd6 {[%clk 0:00:19.1]}
36... Bxd5 {[%clk 0:00:19.1]} 37. Bxd5 {[%clk 0:00:18.8]} 37... Rxd5 {[%clk
0:00:20]} 38. Qxf6+ {[%clk 0:00:19]} 38... Kg8 {[%clk 0:00:19.6]} 39. Qf7+
{[%clk 0:00:19.4]} 1-0

[Event "*** Titled Tuesday Blitz"]
[Site "Chess.com"]
[Date "2021.02.02"]
[Round "6"]
[White "PawnEatingZombie"]
[Black "Joseacorrea"]
[Result "1-0"]
[WhiteElo "2237"]
[BlackElo "2023"]
[TimeControl "180+1"]
[EndTime "11:08:29 PST"]
[Termination "PawnEatingZombie won by resignation"]

1. d4 {[%clk 0:03:00.9]} 1... e6 {[%clk 0:02:59.8]} 2. c4 {[%clk 0:02:59.1]}
2... f5 {[%clk 0:02:59.5]} 3. a3 {[%clk 0:02:57.1]} 3... Nf6 {[%clk 0:02:58.6]}
4. Nc3 {[%clk 0:02:56.6]} 4... d5 {[%clk 0:02:58.5]} 5. Bf4 {[%clk 0:02:55.3]}
5... c6 {[%clk 0:02:58.2]} 6. e3 {[%clk 0:02:55.3]} 6... Be7 {[%clk 0:02:57.7]}
7. Qc2 {[%clk 0:02:55.2]} 7... O-O {[%clk 0:02:58]} 8. Bd3 {[%clk 0:02:55.3]}
8... Nbd7 {[%clk 0:02:57.7]} 9. cxd5 {[%clk 0:02:53.7]} 9... cxd5 {[%clk
0:02:55.6]} 10. Nb5 {[%clk 0:02:40]} 10... Qa5+ {[%clk 0:02:37.3]} 11. Ke2
{[%clk 0:02:37]} 11... Ne4 {[%clk 0:02:17.3]} 12. Nc7 {[%clk 0:02:25.8]} 12...
g5 {[%clk 0:02:02.4]} 13. Nxa8 {[%clk 0:01:59.3]} 13... gxf4 {[%clk 0:01:59.8]}
14. Nc7 {[%clk 0:01:53.9]} 14... Ndf6 {[%clk 0:01:47.1]} 15. Nb5 {[%clk
0:01:37.8]} 15... a6 {[%clk 0:01:42.8]} 16. Nc3 {[%clk 0:01:37.4]} 16... fxe3
{[%clk 0:01:20.6]} 17. fxe3 {[%clk 0:01:35.9]} 17... Ng4 {[%clk 0:01:05.5]} 18.
Nf3 {[%clk 0:01:26.2]} 18... Bd7 {[%clk 0:00:50.8]} 19. b4 {[%clk 0:01:11.9]}
19... Qb6 {[%clk 0:00:32.1]} 20. Rac1 {[%clk 0:00:38.3]} 20... Rc8 {[%clk
0:00:31.5]} 21. Qb3 {[%clk 0:00:32.6]} 21... Ngf2 {[%clk 0:00:20.5]} 22. Nxd5
{[%clk 0:00:12.5]} 22... Rxc1 {[%clk 0:00:21.4]} 23. Nxe7+ {[%clk 0:00:09.5]}
23... Kf7 {[%clk 0:00:20.9]} 24. Rxc1 {[%clk 0:00:10.4]} 24... Bb5 {[%clk
0:00:19]} 25. Bxb5 {[%clk 0:00:08.7]} 25... Qxb5+ {[%clk 0:00:19.9]} 26. Qc4
{[%clk 0:00:08.5]} 26... Qxc4+ {[%clk 0:00:16.2]} 27. Rxc4 {[%clk 0:00:09.4]}
27... Kxe7 {[%clk 0:00:16.8]} 28. Rc7+ {[%clk 0:00:09.8]} 28... Kf6 {[%clk
0:00:17.3]} 29. Rxb7 {[%clk 0:00:09.9]} 29... Ng4 {[%clk 0:00:16.8]} 30. Rxh7
{[%clk 0:00:09]} 30... Nh6 {[%clk 0:00:17.7]} 31. Rxh6+ {[%clk 0:00:08.7]} 31...
Kg7 {[%clk 0:00:17.3]} 32. Rxe6 {[%clk 0:00:08.5]} 32... Nc3+ {[%clk 0:00:18]}
33. Kd3 {[%clk 0:00:08.4]} 33... Nb5 {[%clk 0:00:18.1]} 34. Rxa6 {[%clk
0:00:08]} 34... Nc7 {[%clk 0:00:18.6]} 35. Ra7 {[%clk 0:00:08]} 1-0

[Event "*** Titled Tuesday Blitz"]
[Site "Chess.com"]
[Date "2021.02.02"]
[Round "6"]
[White "gumimis"]
[Black "erlesfar"]
[Result "0-1"]
[WhiteElo "2321"]
[BlackElo "2489"]
[TimeControl "180+1"]
[EndTime "11:08:30 PST"]
[Termination "erlesfar won on time"]

1. e4 {[%clk 0:02:59.6]} 1... d5 {[%clk 0:02:26.9]} 2. exd5 {[%clk 0:02:58.7]}
2... Qxd5 {[%clk 0:02:26.7]} 3. Nc3 {[%clk 0:02:58.9]} 3... Qa5 {[%clk
0:02:26.6]} 4. d4 {[%clk 0:02:59.2]} 4... Nf6 {[%clk 0:02:27]} 5. Nf3 {[%clk
0:02:58.5]} 5... Bg4 {[%clk 0:02:24.2]} 6. h3 {[%clk 0:02:56.2]} 6... Bh5 {[%clk
0:02:20.8]} 7. g4 {[%clk 0:02:55.4]} 7... Bg6 {[%clk 0:02:20.5]} 8. Bd2 {[%clk
0:02:53.6]} 8... c6 {[%clk 0:02:18.7]} 9. Ne5 {[%clk 0:02:53.5]} 9... Nbd7
{[%clk 0:02:14.8]} 10. Nxg6 {[%clk 0:02:51.7]} 10... hxg6 {[%clk 0:02:13.8]} 11.
Bg2 {[%clk 0:02:49.1]} 11... e6 {[%clk 0:02:12.8]} 12. Qe2 {[%clk 0:02:40]}
12... Bb4 {[%clk 0:01:59.9]} 13. a3 {[%clk 0:02:18.8]} 13... Nd5 {[%clk
0:01:21.6]} 14. Bxd5 {[%clk 0:02:13.6]} 14... cxd5 {[%clk 0:01:20.3]} 15. Kf1
{[%clk 0:01:55.2]} 15... Bxc3 {[%clk 0:01:13.3]} 16. Bxc3 {[%clk 0:01:53.2]}
16... Qc7 {[%clk 0:01:09.5]} 17. Kg2 {[%clk 0:01:51]} 17... O-O-O {[%clk
0:01:06.7]} 18. Bd2 {[%clk 0:01:44.2]} 18... Nf6 {[%clk 0:01:03.7]} 19. a4
{[%clk 0:01:32.5]} 19... Ne4 {[%clk 0:01:01.9]} 20. Ra3 {[%clk 0:01:19.2]} 20...
Kb8 {[%clk 0:00:59.9]} 21. Rf3 {[%clk 0:01:08.6]} 21... g5 {[%clk 0:00:51.5]}
22. a5 {[%clk 0:00:47.7]} 22... g6 {[%clk 0:00:47.8]} 23. a6 {[%clk 0:00:41.5]}
23... b6 {[%clk 0:00:47.5]} 24. Ra3 {[%clk 0:00:09.8]} 24... f5 {[%clk
0:00:45.5]} 25. Raa1 {[%clk 0:00:09.5]} 25... Ka8 {[%clk 0:00:39.4]} 26. b3
{[%clk 0:00:07.5]} 26... Qxc2 {[%clk 0:00:37.6]} 27. Rhd1 {[%clk 0:00:05.8]}
27... Qxb3 {[%clk 0:00:31]} 28. Rab1 {[%clk 0:00:05.4]} 28... Qxh3+ {[%clk
0:00:30.1]} 29. Kg1 {[%clk 0:00:06.3]} 29... fxg4 {[%clk 0:00:21.5]} 0-1

[Event "*** Titled Tuesday Blitz"]
[Site "Chess.com"]
[Date "2021.02.02"]
[Round "6"]
[White "Alex_Molchanov"]
[Black "LamaChampetre"]
[Result "0-1"]
[WhiteElo "2447"]
[BlackElo "2227"]
[TimeControl "180+1"]
[EndTime "11:08:32 PST"]
[Termination "LamaChampetre won by resignation"]

1. d4 {[%clk 0:02:37.4]} 1... Nf6 {[%clk 0:02:59.7]} 2. Nf3 {[%clk 0:02:37.2]}
2... g6 {[%clk 0:03:00.1]} 3. c4 {[%clk 0:02:36.5]} 3... Bg7 {[%clk 0:03:00.3]}
4. Nc3 {[%clk 0:02:36.7]} 4... d5 {[%clk 0:03:00.7]} 5. cxd5 {[%clk 0:02:35]}
5... Nxd5 {[%clk 0:03:01.6]} 6. e4 {[%clk 0:02:35.4]} 6... Nxc3 {[%clk
0:03:00.8]} 7. bxc3 {[%clk 0:02:36.3]} 7... c5 {[%clk 0:03:01.5]} 8. Be3 {[%clk
0:02:34.8]} 8... Nc6 {[%clk 0:03:01.3]} 9. Bb5 {[%clk 0:02:34.7]} 9... Bd7
{[%clk 0:02:51.3]} 10. O-O {[%clk 0:02:32.3]} 10... O-O {[%clk 0:02:50.7]} 11.
e5 {[%clk 0:02:23.7]} 11... Qa5 {[%clk 0:02:39.7]} 12. c4 {[%clk 0:02:17.7]}
12... cxd4 {[%clk 0:02:36.7]} 13. Nxd4 {[%clk 0:02:14.2]} 13... Nxd4 {[%clk
0:02:24.4]} 14. Bxd4 {[%clk 0:02:12.1]} 14... Bxb5 {[%clk 0:02:22.2]} 15. cxb5
{[%clk 0:02:13]} 15... Qxb5 {[%clk 0:02:22]} 16. Rb1 {[%clk 0:02:13.5]} 16...
Qd5 {[%clk 0:02:16.1]} 17. Bc3 {[%clk 0:02:01.3]} 17... Qxa2 {[%clk 0:01:49.8]}
18. Rxb7 {[%clk 0:01:53.8]} 18... Rfd8 {[%clk 0:01:37.2]} 19. Qf3 {[%clk
0:01:46.9]} 19... Qe6 {[%clk 0:01:27.6]} 20. h3 {[%clk 0:01:38.1]} 20... a5
{[%clk 0:01:27.1]} 21. Ra1 {[%clk 0:01:29.8]} 21... a4 {[%clk 0:01:23.8]} 22.
Re1 {[%clk 0:01:08.5]} 22... a3 {[%clk 0:01:17.3]} 23. Bb4 {[%clk 0:01:05.3]}
23... a2 {[%clk 0:01:02.3]} 24. Bc3 {[%clk 0:00:56.3]} 24... Rdc8 {[%clk
0:00:53.4]} 25. Ba1 {[%clk 0:00:53.8]} 25... Rab8 {[%clk 0:00:49]} 26. Rxb8
{[%clk 0:00:20.9]} 26... Rxb8 {[%clk 0:00:49.9]} 27. Qd3 {[%clk 0:00:21]} 27...
h5 {[%clk 0:00:44]} 28. Bd4 {[%clk 0:00:15]} 28... Qb3 {[%clk 0:00:38.7]} 29.
Qxb3 {[%clk 0:00:13.7]} 29... Rxb3 {[%clk 0:00:37.9]} 30. Ra1 {[%clk 0:00:13.5]}
30... Rb1+ {[%clk 0:00:33.7]} 31. Kh2 {[%clk 0:00:12.2]} 31... Rxa1 {[%clk
0:00:33.5]} 32. Bxa1 {[%clk 0:00:11.3]} 32... f6 {[%clk 0:00:32.9]} 33. f4
{[%clk 0:00:11.7]} 33... Kf7 {[%clk 0:00:30.1]} 34. h4 {[%clk 0:00:10.1]} 34...
Ke6 {[%clk 0:00:29.9]} 35. Kg3 {[%clk 0:00:07.2]} 35... fxe5 {[%clk 0:00:29.8]}
36. f5+ {[%clk 0:00:06.2]} 36... gxf5 {[%clk 0:00:28.9]} 37. Kf3 {[%clk
0:00:06.8]} 37... e4+ {[%clk 0:00:28.4]} 0-1

[Event "*** Titled Tuesday Blitz"]
[Site "Chess.com"]
[Date "2021.02.02"]
[Round "6"]
[White "Tsyhanchuk_Stanislav"]
[Black "MatyChess1"]
[Result "1-0"]
[WhiteElo "2457"]
[BlackElo "2579"]
[TimeControl "180+1"]
[EndTime "11:08:35 PST"]
[Termination "Tsyhanchuk_Stanislav won by resignation"]

1. e4 {[%clk 0:03:00.9]} 1... c5 {[%clk 0:02:59.9]} 2. Nf3 {[%clk 0:03:00.7]}
2... d6 {[%clk 0:03:00.5]} 3. d4 {[%clk 0:03:01.3]} 3... cxd4 {[%clk 0:03:01.4]}
4. Nxd4 {[%clk 0:03:02.2]} 4... Nf6 {[%clk 0:03:02.1]} 5. Nc3 {[%clk 0:03:02.8]}
5... a6 {[%clk 0:03:02.8]} 6. Be3 {[%clk 0:03:03.1]} 6... e5 {[%clk 0:03:02.8]}
7. Nb3 {[%clk 0:03:03.5]} 7... Be7 {[%clk 0:03:03.4]} 8. Qd2 {[%clk 0:03:04.1]}
8... Ng4 {[%clk 0:03:01.2]} 9. g3 {[%clk 0:03:02.8]} 9... Nxe3 {[%clk
0:02:57.5]} 10. Qxe3 {[%clk 0:03:03.7]} 10... Be6 {[%clk 0:02:57.4]} 11. f4
{[%clk 0:03:04]} 11... exf4 {[%clk 0:02:48.9]} 12. gxf4 {[%clk 0:03:03.5]} 12...
Bh4+ {[%clk 0:02:48.6]} 13. Kd2 {[%clk 0:03:04]} 13... Nc6 {[%clk 0:02:12.1]}
14. Rd1 {[%clk 0:03:03.3]} 14... Rc8 {[%clk 0:01:48.8]} 15. Kc1 {[%clk
0:02:59.6]} 15... Na5 {[%clk 0:01:36.3]} 16. Qf3 {[%clk 0:02:52.6]} 16... O-O
{[%clk 0:01:03.4]} 17. Rg1 {[%clk 0:02:39.5]} 17... Nxb3+ {[%clk 0:00:41.4]} 18.
axb3 {[%clk 0:02:40.4]} 18... Qa5 {[%clk 0:00:41.6]} 19. Kb1 {[%clk 0:02:39]}
19... Bf6 {[%clk 0:00:38.3]} 20. e5 {[%clk 0:02:24.2]} 20... Rxc3 {[%clk
0:00:17.3]} 21. Qxc3 {[%clk 0:01:55.7]} 21... Qxc3 {[%clk 0:00:17.3]} 22. bxc3
{[%clk 0:01:56.6]} 22... dxe5 {[%clk 0:00:17.9]} 23. fxe5 {[%clk 0:01:28.7]}
23... Bxe5 {[%clk 0:00:18.8]} 24. Bg2 {[%clk 0:01:29]} 24... b5 {[%clk
0:00:18.1]} 25. Bb7 {[%clk 0:01:24.6]} 25... a5 {[%clk 0:00:16]} 26. Bd5 {[%clk
0:01:21.2]} 26... Bf5 {[%clk 0:00:12.9]} 27. c4 {[%clk 0:00:57.4]} 27... bxc4
{[%clk 0:00:11.4]} 28. Bxc4 {[%clk 0:00:58.3]} 28... Bxh2 {[%clk 0:00:11]} 29.
Rh1 {[%clk 0:00:58.4]} 29... Bg3 {[%clk 0:00:04.8]} 30. Rhg1 {[%clk 0:00:53]}
30... Be5 {[%clk 0:00:02.6]} 31. Rd5 {[%clk 0:00:52.8]} 31... Bh2 {[%clk
0:00:02.8]} 32. Rg2 {[%clk 0:00:49.1]} 32... Be4 {[%clk 0:00:03.1]} 33. Rxh2
{[%clk 0:00:49.3]} 33... Bxd5 {[%clk 0:00:03.8]} 34. Bxd5 {[%clk 0:00:49.9]}
34... g5 {[%clk 0:00:04.4]} 35. c4 {[%clk 0:00:49.2]} 35... Kg7 {[%clk
0:00:04.6]} 36. c5 {[%clk 0:00:48.9]} 36... Rd8 {[%clk 0:00:04.4]} 37. Rd2
{[%clk 0:00:47.8]} 37... f5 {[%clk 0:00:04]} 38. c6 {[%clk 0:00:48.1]} 38... Kf6
{[%clk 0:00:03.8]} 39. c7 {[%clk 0:00:46.5]} 39... Rc8 {[%clk 0:00:04.2]} 40.
Rc2 {[%clk 0:00:47]} 40... g4 {[%clk 0:00:02.9]} 41. Bb7 {[%clk 0:00:46.1]}
41... Rxc7 {[%clk 0:00:03.3]} 42. Rxc7 {[%clk 0:00:46.7]} 42... h5 {[%clk
0:00:04.2]} 43. Kc2 {[%clk 0:00:43.3]} 43... f4 {[%clk 0:00:03.7]} 44. Kd2
{[%clk 0:00:43.7]} 44... f3 {[%clk 0:00:04]} 45. Ke3 {[%clk 0:00:43.1]} 45...
Kg5 {[%clk 0:00:04.6]} 46. Rc5+ {[%clk 0:00:41.8]} 1-0